bitfinex/quotes_BTCUSD_20240101
["timestamp","ask_amount","ask_price","bid_price","bid_amount"]
[1704143293233,1.35059373,43803.0,43802.0,0.002]
[1704143294883,1.21311753,43803.0,43802.0,0.002]
[1704143295113,1.35079632,43803.0,43802.0,0.002]
[1704143295543,1.43917632,43803.0,43802.0,0.002]
[1704143295971,1.43917632,43803.0,43800.0,0.3499]
[1704143295972,0.665288,43801.0,43800.0,0.3499]
[1704143296179,1.466057,43801.0,43800.0,0.3499]
[1704143296392,0.1,43791.0,43790.0,0.05]
[1704143296600,0.51521904,43791.0,43790.0,0.05]
[1704143296829,1.20846681,43791.0,43790.0,0.05]
[1704143297045,1.27170681,43791.0,43790.0,0.05]
[1704143297276,0.1,43785.0,43781.0,0.6584]
[1704143297496,0.1,43785.0,43778.0,0.05]
[1704143297497,0.33321711,43784.0,43778.0,0.05]
[1704143298164,0.12870854,43783.0,43778.0,0.05]
[1704143298375,0.23321711,43782.0,43778.0,0.05]
[1704143299206,0.23321711,43782.0,43776.0,0.01]
[1704143299411,0.23321711,43782.0,43778.0,0.008]
[1704143299649,0.23321711,43782.0,43776.0,0.31]
[1704143300065,0.23421711,43782.0,43778.0,0.008]
[1704143300412,0.23521711,43782.0,43778.0,0.019]
[1704143300614,0.23521711,43782.0,43781.0,0.3499]
[1704143301665,0.23421711,43782.0,43781.0,0.3499]
[1704143301862,0.23321711,43782.0,43781.0,0.3499]
[1704143302091,0.23421711,43782.0,43781.0,0.3569]
[1704143303050,0.23521711,43782.0,43781.0,0.3569]
[1704143304563,0.23421711,43782.0,43781.0,0.3569]
[1704143304799,0.23521711,43782.0,43781.0,0.3629]
[1704143311797,0.002,43782.0,43781.0,1.41960384]
[1704143312038,0.002,43782.0,43781.0,1.77846384]
[1704143312671,0.64542536,43795.0,43786.0,0.365405]
[1704143312877,0.23321711,43794.0,43786.0,0.365405]
[1704143313104,0.18540392,43798.0,43787.0,0.023]
[1704143313316,0.33321711,43797.0,43787.0,0.023]
[1704143313988,0.33321711,43797.0,43790.0,0.365379]
[1704143314729,0.33321711,43797.0,43796.0,0.3499]
[1704143314897,0.001,43797.0,43796.0,0.3499]
[1704143315118,0.002,43797.0,43796.0,0.3499]
[1704143315528,0.001,43797.0,43796.0,0.3499]
[1704143315735,0.002,43797.0,43796.0,0.3499]
[1704143315908,0.001,43797.0,43796.0,0.3499]
[1704143316264,0.001,43797.0,43796.0,0.3559]
[1704143317465,0.001,43797.0,43796.0,0.3609]
[1704143317672,0.1,43801.0,43796.0,0.3549]
[1704143317889,0.23321711,43800.0,43796.0,0.3549]
[1704143318218,0.001,43797.0,43796.0,0.3599]
[1704143318373,0.23321711,43800.0,43796.0,0.3549]
[1704143318591,0.001,43797.0,43796.0,0.3599]
[1704143318818,0.23321711,43800.0,43796.0,0.3499]
[1704143319039,0.23321711,43800.0,43796.0,0.3549]
[1704143319438,0.23321711,43800.0,43796.0,0.3499]
[1704143319640,0.23321711,43800.0,43799.0,0.3499]
[1704143319641,0.23421711,43800.0,43799.0,0.3499]
[1704143320925,0.23321711,43800.0,43799.0,0.3499]
[1704143322180,0.16321711,43800.0,43799.0,0.3499]
[1704143322943,0.16321711,43800.0,43799.0,0.3509]
[1704143323378,0.16321711,43800.0,43799.0,0.3499]
[1704143323546,0.16821711,43800.0,43799.0,0.3499]
[1704143323974,0.83351311,43800.0,43799.0,0.3499]
[1704143324175,0.88931311,43800.0,43799.0,0.3499]
[1704143324378,0.9469331,43800.0,43799.0,0.3499]
[1704143324678,0.9469331,43800.0,43794.0,0.3499]
[1704143324679,0.1,43795.0,43794.0,0.3499]
[1704143325039,0.33321711,43795.0,43794.0,0.3499]
[1704143325251,0.96221511,43795.0,43794.0,0.3499]
[1704143325458,0.1,43791.0,43784.0,0.6584]
[1704143325693,0.1,43791.0,43783.0,0.01]
[1704143325694,0.23321711,43790.0,43782.0,0.06]
[1704143325887,0.46701711,43790.0,43782.0,0.06]
[1704143326517,0.46701711,43790.0,43784.0,0.01]
[1704143326804,0.46701711,43790.0,43789.0,0.3499]
[1704143327244,0.64618743,43790.0,43789.0,0.3499]
[1704143327484,0.74618743,43790.0,43789.0,0.3499]
[1704143327698,1.11256743,43790.0,43788.0,0.3499]
[1704143327904,1.11156743,43790.0,43788.0,0.3499]
[1704143328116,0.1,43789.0,43788.0,0.3499]
[1704143328287,0.79860511,43789.0,43788.0,0.3499]
[1704143328743,0.1,43787.0,43785.0,0.3499]
[1704143328970,0.23321711,43786.0,43785.0,0.3499]
[1704143330046,0.365388,43789.0,43785.0,0.3499]
[1704143330254,0.23321711,43788.0,43785.0,0.3499]
[1704143330396,0.23321711,43788.0,43785.0,0.3549]
[1704143330601,0.23321711,43788.0,43785.0,0.005]
[1704143331557,0.23421711,43788.0,43785.0,0.01]
[1704143332561,0.23421711,43788.0,43787.0,0.3499]
[1704143333698,0.23321711,43788.0,43787.0,0.3499]
[1704143334184,0.23321711,43788.0,43787.0,0.3549]
[1704143334878,0.23321711,43788.0,43787.0,0.10951992]
[1704143335100,0.365478,43779.0,43773.0,0.05]
[1704143335307,0.1,43780.0,43773.0,0.05]
[1704143335308,0.23321711,43778.0,43773.0,0.05]
[1704143335515,0.23321711,43778.0,43776.0,0.3499]
[1704143336375,0.1,43777.0,43776.0,0.3499]
[1704143336597,0.1,43776.0,43773.0,0.015]
[1704143336798,0.33321711,43776.0,43773.0,0.015]
[1704143337002,0.500634,43776.0,43773.0,0.015]
[1704143337206,0.500634,43776.0,43772.0,0.3499]
[1704143337665,0.500634,43776.0,43771.0,0.3499]
[1704143338967,0.500634,43776.0,43773.0,0.004]
[1704143339377,0.500634,43776.0,43771.0,0.3499]
[1704143339852,0.500634,43776.0,43771.0,0.3539]
[1704143340071,0.500634,43776.0,43771.0,0.3569]
[1704143340530,0.500634,43776.0,43771.0,0.007]
[1704143340772,0.500634,43776.0,43771.0,0.3569]
[1704143341723,0.500634,43776.0,43772.0,0.3499]
[1704143342145,0.33321711,43776.0,43772.0,0.3499]
[1704143342555,0.489926,43776.0,43772.0,0.3499]
[1704143343318,0.489926,43776.0,43772.0,0.3539]
[1704143343757,0.2,43773.0,43772.0,0.3539]
[1704143343996,0.89873911,43773.0,43772.0,0.3539]
[1704143344199,1.31889279,43773.0,43772.0,0.3539]
[1704143344432,1.69788544,43773.0,43772.0,0.3539]
[1704143344636,1.69788544,43773.0,43772.0,0.002]
[1704143344842,1.69788544,43773.0,43758.0,0.02915]
[1704143344843,0.1,43763.0,43758.0,0.02915]
[1704143345042,0.23321711,43762.0,43758.0,0.02915]
[1704143345249,0.33321711,43762.0,43761.0,0.02043839]
[1704143345458,0.33321711,43762.0,43761.0,0.01362559]
[1704143345664,0.84293111,43762.0,43761.0,0.01362559]
[1704143345861,0.1,43759.0,43758.0,0.02915]
[1704143346066,0.33321711,43759.0,43758.0,0.02915]
[1704143347086,0.38595711,43759.0,43758.0,0.02915]
[1704143347314,0.48595711,43759.0,43758.0,0.02915]
[1704143347441,0.74738172,43759.0,43758.0,0.03115]
[1704143348940,1.11302072,43759.0,43758.0,0.03315]
[1704143349147,1.06028072,43759.0,43758.0,0.03115]
[1704143349271,1.12370072,43759.0,43758.0,0.03115]
[1704143349478,1.12870072,43759.0,43758.0,0.03015]
[1704143349802,1.12870072,43759.0,43758.0,0.02915]
[1704143349999,1.13470072,43759.0,43758.0,0.03015]
[1704143350203,1.12370072,43759.0,43758.0,0.02915]
[1704143350612,1.14070072,43759.0,43758.0,0.03115]
[1704143350819,0.79306172,43759.0,43758.0,0.03215]
[1704143351015,1.15870072,43759.0,43758.0,0.03215]
[1704143351214,1.15870072,43759.0,43758.0,0.03315]
[1704143351215,1.17670072,43759.0,43758.0,0.03315]
[1704143351782,1.15970072,43759.0,43758.0,0.03115]
[1704143352183,1.17670072,43759.0,43758.0,0.03315]
[1704143357961,1.54233972,43759.0,43758.0,0.03315]
[1704143358424,1.57548972,43759.0,43758.0,0.03315]
[1704143358646,1.70886972,43759.0,43758.0,0.03315]
[1704143359594,1.71886972,43759.0,43758.0,0.03315]
[1704143359813,2.08450872,43759.0,43758.0,0.00961074]
[1704143360020,0.3,43757.0,43756.0,0.00220352]
[1704143360205,0.90887211,43757.0,43756.0,0.00220352]
[1704143360478,0.99317211,43757.0,43756.0,0.00220352]
[1704143360897,1.08317211,43757.0,43756.0,0.00220352]
[1704143361315,1.09817211,43757.0,43756.0,0.00320352]
[1704143361519,1.42269747,43757.0,43756.0,0.00320352]
[1704143361720,1.78835247,43757.0,43756.0,0.00320352]
[1704143361934,2.23123931,43757.0,43756.0,0.00320352]
[1704143362350,2.23123931,43757.0,43756.0,0.00420352]
[1704143362550,2.26741931,43757.0,43756.0,0.00420352]
[1704143362779,2.28141931,43757.0,43756.0,0.00420352]
[1704143362962,2.27141931,43757.0,43756.0,0.00420352]
[1704143363211,2.44347434,43757.0,43756.0,0.00420352]
[1704143363450,0.39989235,43756.0,43755.0,0.00554198]
[1704143363663,0.3,43753.0,43752.0,0.02915]
[1704143363875,1.58912047,43753.0,43752.0,0.02915]
[1704143364098,1.79660047,43753.0,43752.0,0.02915]
[1704143364449,1.80660047,43753.0,43752.0,0.02915]
[1704143365023,1.83602047,43753.0,43752.0,0.02915]
[1704143365654,1.98172168,43753.0,43752.0,0.02915]
[1704143366808,1.99972168,43753.0,43752.0,0.03015]
[1704143367300,1.89598168,43753.0,43752.0,0.03015]
[1704143367553,1.91398168,43753.0,43752.0,0.03015]
[1704143368045,1.18260368,43753.0,43752.0,0.03015]
[1704143368280,1.54829268,43753.0,43752.0,0.03015]
[1704143368936,1.91398168,43753.0,43752.0,0.03015]
[1704143371408,1.51887268,43753.0,43752.0,0.03015]
[1704143371661,0.78917832,43753.0,43752.0,0.03015]
[1704143371869,1.15486732,43753.0,43752.0,0.03015]
[1704143373729,1.14486732,43753.0,43752.0,0.03015]
[1704143375991,1.15486732,43753.0,43752.0,0.03015]
[1704143376691,1.14486732,43753.0,43752.0,0.03015]
[1704143377219,0.99916611,43753.0,43752.0,0.03015]
[1704143377434,0.93490611,43753.0,43752.0,0.03015]
[1704143377641,0.83490611,43753.0,43752.0,0.03015]
[1704143378058,0.94490611,43753.0,43752.0,0.03015]
[1704143378297,1.01234611,43753.0,43752.0,0.03015]
[1704143379253,0.98434611,43753.0,43752.0,0.02915]
[1704143380049,0.99434611,43753.0,43752.0,0.02915]
[1704143380266,0.99434611,43753.0,43752.0,0.03015]
[1704143380706,0.99434611,43753.0,43752.0,0.02915]
[1704143381140,1.01234611,43753.0,43752.0,0.03015]
[1704143382453,0.99691129,43753.0,43752.0,0.03015]
[1704143383396,1.02419388,43753.0,43752.0,0.03015]
[1704143383805,0.94234611,43753.0,43752.0,0.03015]
[1704143384121,1.02419388,43753.0,43752.0,0.03015]
[1704143384321,1.02421826,43753.0,43752.0,0.03015]
[1704143384529,0.94234611,43753.0,43752.0,0.03015]
[1704143385189,0.93906228,43753.0,43752.0,0.03015]
[1704143385526,1.19562092,43753.0,43752.0,0.03015]
[1704143386598,2.29266835,43753.0,43752.0,0.03015]
[1704143386783,1.92697935,43753.0,43752.0,0.03015]
[1704143387659,1.82461935,43753.0,43752.0,0.03015]
[1704143388277,1.98847934,43753.0,43752.0,0.03015]
[1704143388837,1.62279034,43753.0,43752.0,0.03015]
[1704143389451,1.77131981,43753.0,43752.0,0.03015]
[1704143389990,2.13700881,43753.0,43752.0,0.03015]
[1704143390199,2.23270906,43753.0,43752.0,0.03015]
[1704143390426,2.13694906,43753.0,43752.0,0.03015]
[1704143390657,2.13694906,43753.0,43752.0,0.02915]
[1704143390849,2.19958906,43753.0,43752.0,0.02915]
[1704143391274,2.18958906,43753.0,43752.0,0.02915]
[1704143391485,2.54211442,43753.0,43752.0,0.02915]
[1704143391710,2.3790629,43753.0,43752.0,0.02915]
[1704143391950,2.7447519,43753.0,43752.0,0.02915]
[1704143392565,2.7267519,43753.0,43752.0,0.02915]
[1704143392994,2.56011442,43753.0,43752.0,0.02915]
[1704143393196,2.74493173,43753.0,43752.0,0.02915]
[1704143393406,2.56011442,43753.0,43752.0,0.02915]
[1704143393813,2.54211442,43753.0,43752.0,0.02915]
[1704143394228,2.56011442,43753.0,43752.0,0.02915]
[1704143395075,2.46147442,43753.0,43752.0,0.02915]
[1704143395284,2.09578542,43753.0,43752.0,0.02915]
[1704143397135,2.12610538,43753.0,43752.0,0.02915]
[1704143398773,2.09916538,43753.0,43752.0,0.02915]
[1704143399395,2.28409851,43753.0,43752.0,0.02915]
[1704143401398,2.09916538,43753.0,43752.0,0.02915]
[1704143401609,2.28414979,43753.0,43752.0,0.02915]
[1704143401887,2.09916538,43753.0,43752.0,0.02915]
[1704143402907,2.46485438,43753.0,43752.0,0.02915]
[1704143405110,1.69370998,43753.0,43752.0,0.02915]
[1704143405336,0.96141718,43753.0,43752.0,0.02915]
[1704143406251,0.94341718,43753.0,43752.0,0.02915]
[1704143406494,0.76538086,43753.0,43752.0,0.02915]
[1704143406730,0.61289182,43753.0,43752.0,0.02915]
[1704143406974,0.67181182,43753.0,43752.0,0.02915]
[1704143407204,0.62789182,43753.0,43752.0,0.02915]
[1704143407956,0.52789182,43753.0,43752.0,0.02915]
[1704143409169,0.29467471,43753.0,43752.0,0.09915]
[1704143409414,0.10920568,43753.0,43752.0,0.09915]
[1704143409660,0.027,43753.0,43752.0,0.09915]
[1704143409891,0.08178367,43753.0,43752.0,0.09915]
[1704143410599,0.06678367,43753.0,43752.0,0.44905]
[1704143411065,0.07778367,43753.0,43752.0,0.44905]
[1704143411330,0.06678367,43753.0,43752.0,0.44905]
[1704143411570,0.06078367,43753.0,43752.0,0.44905]
[1704143411806,0.014,43753.0,43752.0,0.10015]
[1704143412271,0.006,43753.0,43752.0,0.09915]
[1704143412452,0.006,43753.0,43752.0,0.10015]
[1704143412674,0.09120568,43753.0,43752.0,0.03015]
[1704143412937,0.11860758,43753.0,43752.0,0.03015]
[1704143413151,0.009,43753.0,43752.0,0.03015]
[1704143413605,0.11860758,43753.0,43752.0,0.03015]
[1704143414000,0.009,43753.0,43752.0,0.03015]
[1704143414200,0.3888349,43753.0,43752.0,0.03015]
[1704143414501,0.09111517,43753.0,43752.0,0.03015]
[1704143415636,0.77008684,43753.0,43752.0,0.03015]
[1704143415856,1.27464826,43753.0,43752.0,0.03015]
[1704143416071,0.56093252,43753.0,43752.0,0.03015]
[1704143416286,0.62193214,43753.0,43752.0,0.03015]
[1704143416500,0.62192953,43753.0,43752.0,0.04079238]
[1704143416855,0.62192953,43753.0,43752.0,0.03015]
[1704143417055,0.62192953,43753.0,43752.0,0.04077795]
[1704143417271,0.51245252,43753.0,43752.0,0.04077795]
[1704143417746,0.24221711,43753.0,43752.0,0.04077795]
[1704143419432,0.32431577,43753.0,43752.0,0.04077795]
[1704143419871,0.24221711,43753.0,43752.0,0.04077795]
[1704143420164,0.62191698,43753.0,43752.0,0.04077795]
[1704143420628,0.24221711,43753.0,43752.0,0.04077795]
[1704143420894,0.32431051,43753.0,43752.0,0.04077795]
[1704143421974,0.0910934,43753.0,43752.0,0.11077795]
[1704143422209,0.009,43753.0,43752.0,0.13377795]
[1704143422668,0.009,43753.0,43752.0,0.84937495]
[1704143423746,0.003,43753.0,43752.0,0.84937495]
[1704143424170,0.008,43753.0,43752.0,0.85037495]
[1704143424350,0.003,43753.0,43752.0,0.84937495]
[1704143424566,0.05472563,43757.0,43752.0,0.84837495]
[1704143424800,0.002,43753.0,43752.0,0.84837495]
[1704143425420,0.05472563,43758.0,43752.0,0.84837495]
[1704143425658,0.28794274,43758.0,43752.0,0.84837495]
[1704143425873,0.28794274,43758.0,43755.0,0.07]
[1704143426518,0.28794274,43758.0,43756.0,0.0084461]
[1704143426901,0.28794274,43758.0,43755.0,0.07]
[1704143427103,0.28794274,43758.0,43757.0,0.00843586]
[1704143427303,0.28794274,43758.0,43756.0,0.0084461]
[1704143427518,0.28794274,43758.0,43757.0,0.00843586]
[1704143427722,0.28794274,43758.0,43757.0,0.01054482]
[1704143427962,0.28794274,43758.0,43755.0,0.07]
[1704143428168,0.08202586,43757.0,43755.0,0.07]
[1704143428529,0.08202586,43756.0,43755.0,0.07]
[1704143428745,0.08202586,43756.0,43754.0,0.3499]
[1704143428949,1.46478321,43755.0,43754.0,0.3499]
[1704143429327,1.81875225,43755.0,43754.0,0.3499]
[1704143429716,0.23,43753.0,43752.0,0.02915]
[1704143429906,1.09912821,43753.0,43752.0,0.02915]
[1704143430128,1.23585432,43753.0,43752.0,0.02915]
[1704143430325,1.3268352,43753.0,43752.0,0.02915]
[1704143430690,1.4281152,43753.0,43752.0,0.02915]
[1704143431116,1.4381152,43753.0,43752.0,0.02915]
[1704143431513,1.4675352,43753.0,43752.0,0.02915]
[1704143432731,1.4745352,43753.0,43752.0,0.02915]
[1704143435762,1.3732552,43753.0,43752.0,0.02915]
[1704143436620,0.98612821,43753.0,43752.0,0.02915]
[1704143436824,1.12289351,43753.0,43752.0,0.02915]
[1704143437428,0.88612821,43753.0,43752.0,0.02915]
[1704143438355,1.02289351,43753.0,43752.0,0.02915]
[1704143439098,1.12289351,43753.0,43752.0,0.02915]
[1704143439617,1.02289351,43753.0,43752.0,0.02915]
[1704143439822,0.99556407,43753.0,43752.0,0.02915]
[1704143440065,1.09556407,43753.0,43752.0,0.02915]
[1704143442001,0.98612821,43753.0,43752.0,0.02915]
[1704143442439,1.12289351,43753.0,43752.0,0.02915]
[1704143442663,1.05289351,43753.0,43752.0,0.04099839]
[1704143442888,0.95289351,43753.0,43752.0,0.04099839]
[1704143443131,0.07173538,43753.0,43752.0,0.11099839]
[1704143443379,0.017,43753.0,43752.0,0.11099839]
[1704143443609,0.017,43753.0,43752.0,0.79273691]
[1704143443834,0.017,43753.0,43752.0,1.50833391]
[1704143444062,0.08210308,43760.0,43758.0,0.07]
[1704143444063,0.05473538,43759.0,43758.0,0.07]
[1704143444528,0.05473538,43759.0,43758.0,0.08176491]
[1704143444752,0.05473538,43759.0,43758.0,0.43166491]
[1704143446617,0.05773538,43759.0,43758.0,0.43166491]
[1704143447322,0.003,43759.0,43758.0,0.43166491]
[1704143448073,0.05773538,43759.0,43758.0,0.43166491]
[1704143448610,0.70185611,43759.0,43758.0,0.36166491]
[1704143448831,1.19122287,43759.0,43758.0,0.01176491]
[1704143449076,1.45555191,43759.0,43758.0,0.01176491]
[1704143449316,0.1,43757.0,43752.0,0.02915]
[1704143449610,0.10947146,43753.0,43752.0,0.02915]
[1704143449824,0.69890611,43753.0,43752.0,0.02915]
[1704143450055,1.10591924,43753.0,43752.0,0.02915]
[1704143450282,1.18727924,43753.0,43752.0,0.02915]
[1704143450507,1.05043991,43753.0,43752.0,0.02915]
[1704143450740,1.05043991,43753.0,43752.0,0.03215]
[1704143451228,1.05043991,43753.0,43752.0,0.02915]
[1704143451485,1.22304218,43753.0,43752.0,0.03115]
[1704143456117,0.08311974,43753.0,43752.0,0.10115]
[1704143456325,0.001,43753.0,43752.0,0.489847]
[1704143456556,0.001,43753.0,43752.0,0.85154459]
[1704143457207,0.05474515,43757.0,43756.0,0.07]
[1704143457413,0.05473716,43757.0,43756.0,0.07]
[1704143457628,0.05473716,43757.0,43756.0,0.08176784]
[1704143458646,0.06373716,43757.0,43756.0,0.08176784]
[1704143459236,0.06973437,43757.0,43756.0,0.08276784]
[1704143459673,0.015,43757.0,43756.0,0.43266784]
[1704143459887,0.06073171,43757.0,43756.0,0.36266784]
[1704143460099,0.06073171,43757.0,43756.0,0.43266784]
[1704143460319,0.05773171,43757.0,43756.0,0.43166784]
[1704143460739,0.05773171,43757.0,43756.0,0.08176784]
[1704143461592,0.05773171,43757.0,43756.0,0.43166784]
[1704143461804,0.003,43757.0,43756.0,0.43166784]
[1704143464731,0.003,43757.0,43756.0,0.08176784]
[1704143465155,0.003,43757.0,43756.0,0.01176784]
[1704143465376,0.1124974,43757.0,43755.0,0.3499]
[1704143465583,0.1124974,43757.0,43752.0,0.02915]
[1704143465584,0.08208197,43756.0,43752.0,0.02915]
[1704143465845,0.05472204,43755.0,43752.0,0.02915]
[1704143466054,0.05472204,43755.0,43752.0,0.09915]
[1704143466265,0.05472204,43755.0,43752.0,0.02915]
[1704143466479,0.05472204,43755.0,43752.0,0.09915]
[1704143466702,0.05472204,43754.0,43753.0,0.3499]
[1704143467612,0.05472204,43754.0,43752.0,0.03515]
[1704143467803,0.05472204,43753.0,43752.0,0.02915]
[1704143468277,0.68098808,43753.0,43752.0,0.02915]
[1704143468742,0.59890611,43753.0,43752.0,0.02915]
[1704143468926,0.97863357,43753.0,43752.0,0.02915]
[1704143469410,0.97863357,43753.0,43752.0,0.03015]
[1704143469411,0.59990611,43753.0,43752.0,0.03015]
[1704143469636,0.59990611,43753.0,43752.0,0.03415]
[1704143469861,0.98063351,43753.0,43752.0,0.03415]
[1704143470313,0.98063326,43753.0,43752.0,0.03415]
[1704143470541,0.59990611,43753.0,43752.0,0.03015]
[1704143470753,0.59990611,43753.0,43752.0,0.04381928]
[1704143471230,0.68099929,43753.0,43752.0,0.03981928]
[1704143471488,0.59890611,43753.0,43752.0,0.04081928]
[1704143472175,0.97863244,43753.0,43752.0,0.03981928]
[1704143472600,0.97863244,43753.0,43752.0,0.04081928]
[1704143473029,0.59890611,43753.0,43752.0,0.04081928]
[1704143473569,0.97863186,43753.0,43752.0,0.04081928]
[1704143474019,0.97863186,43753.0,43752.0,0.03315]
[1704143474239,0.97963186,43753.0,43752.0,0.04381928]
[1704143474489,0.70940351,43753.0,43752.0,0.04381928]
[1704143475442,0.9796319,43753.0,43752.0,0.04381928]
[1704143480068,1.1699145,43753.0,43752.0,0.04381928]
[1704143480552,1.1699145,43753.0,43752.0,0.03315]
[1704143481025,1.1528145,43753.0,43752.0,0.03315]
[1704143481480,1.1518145,43753.0,43752.0,0.03015]
[1704143481955,1.1548145,43753.0,43752.0,0.03115]
[1704143482158,1.1548145,43753.0,43752.0,0.03015]
[1704143482373,1.1518145,43753.0,43752.0,0.02915]
[1704143482588,1.1608145,43753.0,43752.0,0.02915]
[1704143482836,1.1678145,43753.0,43752.0,0.02915]
[1704143483080,1.34430354,43753.0,43752.0,0.02915]
[1704143483302,1.8195339,43753.0,43752.0,0.02915]
[1704143483722,1.88237696,43753.0,43752.0,0.02915]
[1704143483988,1.87337696,43753.0,43752.0,0.02915]
[1704143484209,1.77161696,43753.0,43752.0,0.02915]
[1704143484437,1.8183939,43753.0,43752.0,0.02915]
[1704143485091,1.7993939,43753.0,43752.0,0.02915]
[1704143485535,1.8113939,43753.0,43752.0,0.02915]
[1704143485776,1.87429872,43753.0,43752.0,0.02915]
[1704143486244,1.4457049,43753.0,43752.0,0.02915]
[1704143486459,1.8113939,43753.0,43752.0,0.02915]
[1704143489684,1.4457049,43753.0,43752.0,0.02915]
[1704143489927,1.8113939,43753.0,43752.0,0.02915]
[1704143492358,1.7107739,43753.0,43752.0,0.02915]
[1704143493747,1.2218945,43753.0,43752.0,0.02915]
[1704143493950,1.1201345,43753.0,43752.0,0.02915]
[1704143494169,0.9901345,43753.0,43752.0,0.02915]
[1704143494576,0.25421711,43753.0,43752.0,0.02915]
[1704143494776,0.3363166,43753.0,43752.0,0.02915]
[1704143495094,0.30894929,43753.0,43752.0,0.03877981]
[1704143495302,0.3363166,43753.0,43752.0,0.03877981]
[1704143495710,0.3243166,43753.0,43752.0,0.03877981]
[1704143495888,0.3183166,43753.0,43752.0,0.03877981]
[1704143496103,0.3183166,43753.0,43752.0,0.02915]
[1704143496298,0.66913391,43753.0,43752.0,0.03015]
[1704143496521,0.76913391,43753.0,43752.0,0.03015]
[1704143496770,0.7995062,43753.0,43752.0,0.03015]
[1704143496995,0.7935062,43753.0,43752.0,0.02915]
[1704143497250,0.76613278,43753.0,43752.0,0.02915]
[1704143497716,1.2886152,43753.0,43752.0,0.02915]
[1704143497943,1.2591952,43753.0,43752.0,0.02915]
[1704143498599,1.12235259,43753.0,43752.0,0.02915]
[1704143499459,1.25918907,43753.0,43752.0,0.02915]
[1704143500058,1.12235259,43753.0,43752.0,0.02915]
[1704143500527,1.14593259,43753.0,43752.0,0.02915]
[1704143501138,1.28277445,43753.0,43752.0,0.02915]
[1704143501397,1.14593259,43753.0,43752.0,0.02915]
[1704143501603,1.28277448,43753.0,43752.0,0.02915]
[1704143501980,1.30947231,43753.0,43752.0,0.02915]
[1704143502763,1.23947231,43753.0,43752.0,0.02915]
[1704143503747,1.37633329,43753.0,43752.0,0.02915]
[1704143504356,1.21279357,43753.0,43752.0,0.02915]
[1704143504754,1.07593259,43753.0,43752.0,0.02915]
[1704143505721,1.13902349,43753.0,43752.0,0.02915]
[1704143506135,0.43644359,43753.0,43752.0,0.02915]
[1704143506336,0.05775093,43753.0,43752.0,0.09915]
[1704143506679,0.003,43753.0,43752.0,0.10901623]
[1704143508559,0.003,43753.0,43752.0,0.45891623]
[1704143510117,0.05775093,43753.0,43752.0,0.45891623]
[1704143510588,0.003,43753.0,43752.0,0.45891623]
[1704143514649,0.003,43753.0,43752.0,0.10901623]
[1704143515823,0.05775251,43753.0,43752.0,0.10901623]
[1704143516224,0.003,43753.0,43752.0,0.10901623]
[1704143517534,0.003,43753.0,43752.0,0.45891623]
[1704143518366,0.003,43753.0,43752.0,0.84761323]
[1704143519125,0.05475098,43758.0,43752.0,0.84761323]
[1704143519319,0.05475098,43759.0,43753.0,0.023]
[1704143519542,0.05475098,43759.0,43757.0,0.3499]
[1704143520027,0.05475098,43759.0,43758.0,0.00975094]
[1704143521134,0.08212825,43759.0,43758.0,0.00975094]
[1704143522000,0.05571921,43759.0,43758.0,0.00975094]
[1704143522218,0.001,43759.0,43758.0,0.01075094]
[1704143522434,0.05471744,43759.0,43758.0,0.01075094]
[1704143522868,0.05471744,43759.0,43758.0,0.01375094]
[1704143523082,0.05571744,43759.0,43758.0,0.01375094]
[1704143523311,0.001,43759.0,43758.0,0.08375094]
[1704143523533,0.001,43759.0,43758.0,1.13229794]
[1704143523752,0.001,43759.0,43758.0,1.17699794]
[1704143523977,0.001,43759.0,43758.0,1.13229794]
[1704143524627,0.001,43759.0,43758.0,0.83373094]
[1704143524847,0.001,43759.0,43758.0,1.29937794]
[1704143525078,0.08212825,43772.0,43769.0,0.07]
[1704143525079,0.05471744,43772.0,43769.0,0.07]
[1704143525196,0.23321711,43772.0,43769.0,0.07]
[1704143525425,0.23321711,43772.0,43770.0,0.00953129]
[1704143525643,0.23321711,43772.0,43769.0,0.07]
[1704143526470,0.23621711,43772.0,43770.0,0.001]
[1704143526882,0.05471744,43775.0,43769.0,0.07]
[1704143526883,0.05471744,43777.0,43772.0,0.07]
[1704143527105,0.23321711,43776.0,43772.0,0.07]
[1704143527316,0.23321711,43776.0,43773.0,0.00948526]
[1704143527515,0.23321711,43776.0,43775.0,0.3499]
[1704143527916,0.365476,43779.0,43775.0,0.35936459]
[1704143528126,0.23321711,43778.0,43775.0,0.35936459]
[1704143528548,0.21413744,43785.0,43778.0,0.3499]
[1704143528549,0.365448,43782.0,43778.0,0.3499]
[1704143528754,0.23321711,43781.0,43778.0,0.3499]
[1704143528967,0.23321711,43781.0,43779.0,0.00941391]
[1704143528968,0.40402359,43781.0,43779.0,0.00941391]
[1704143529173,0.23321711,43781.0,43779.0,0.00941391]
[1704143530058,0.23321711,43781.0,43779.0,0.01241391]
[1704143530436,0.594435,43784.0,43779.0,0.08241391]
[1704143530638,0.23321711,43783.0,43780.0,0.4199]
[1704143530981,0.23321711,43783.0,43780.0,0.42929228]
[1704143532055,0.23821711,43783.0,43781.0,0.07]
[1704143532265,0.23321711,43783.0,43781.0,0.07]
[1704143532480,0.23321711,43783.0,43782.0,0.07937163]
[1704143532481,0.001,43783.0,43782.0,0.07937163]
[1704143532707,0.001,43783.0,43782.0,0.45227163]
[1704143532708,0.004,43783.0,43782.0,0.45227163]
[1704143532927,0.003,43783.0,43782.0,0.45227163]
[1704143533134,0.2406,43788.0,43786.0,0.07]
[1704143533348,0.002,43783.0,43782.0,0.42927163]
[1704143533562,0.002,43783.0,43782.0,0.4199]
[1704143533776,0.002,43783.0,43782.0,0.3499]
[1704143534416,0.002,43783.0,43782.0,0.4199]
[1704143534831,0.2406,43787.0,43782.0,0.4199]
[1704143535055,0.001,43783.0,43782.0,0.4269]
[1704143535291,0.002,43783.0,43782.0,0.4319]
[1704143535710,0.001,43783.0,43782.0,0.3549]
[1704143536139,0.001,43783.0,43782.0,0.3609]
[1704143536548,0.001,43783.0,43782.0,0.3549]
[1704143537994,0.002,43783.0,43782.0,0.3619]
[1704143538551,0.002,43783.0,43782.0,0.4319]